fUSD/lending_fUSD_20240812
["ID","MTS","AMOUNT","RATE_DAILY","PERIOD"]
[334661981,1723420808384,250.0,9.316e-05,2]
[334661982,1723420811662,760.38691325,9.325e-05,2]
[334661984,1723420889175,170.85,9.304e-05,2]
[334661986,1723420915509,760.38691325,9.325e-05,2]
[334661987,1723420945527,760.38691325,9.325e-05,2]
[334661988,1723420951261,150.0,0.0002382,120]
[334661990,1723420997604,251.23,9.65e-05,2]
[334661991,1723421048471,588.76,8.219e-05,2]
[334661994,1723421071309,150.0,0.00024187,120]
[334661995,1723421078546,23900.0,9.312e-05,2]
[334661997,1723421087536,562.66013167,9.65e-05,2]
[334662002,1723421182631,497.44,9.304e-05,2]
[334662003,1723421190721,150.0,0.00026197,120]
[334662004,1723421226655,251.26,9.319e-05,2]
[334662022,1723421248186,-161.72670007,0.00011105,10]
[334662023,1723421250746,150.0,0.00025623,120]
[334662028,1723421398527,167.47,9.311e-05,2]
[334662029,1723421409421,250.0,9.307e-05,2]
[334662030,1723421410913,-595.90557673,9.681e-05,2]
[334662035,1723421430726,150.0,0.00024115,120]
[334662047,1723421432116,-98.43788457,9.681e-05,2]
[334662048,1723421432125,-228.74,9.781e-05,2]
[334662049,1723421432135,-178.27,9.862e-05,2]
[334662050,1723421432147,-12.22211543,0.0001,2]
[334662051,1723421432168,-537.77788457,0.0001,2]
[334662052,1723421432177,-739.63,0.00010195,2]
[334662053,1723421432189,-739.63,0.00010198,2]
[334662054,1723421432199,-1048.24989961,0.00010198,2]
[334662055,1723421432210,-721.88288505,0.00010198,2]
[334662056,1723421432220,-344.58955723,0.000102,2]
[334662057,1723421432231,-395.04044277,0.000102,2]
[334662058,1723421432240,-739.63,0.00010203,2]
[334662059,1723421432250,-338.29955723,0.00010206,2]
[334662060,1723421432261,-401.33044277,0.00010206,2]
[334662061,1723421432271,-300.0,0.00010207,2]
[334662062,1723421432281,-739.63,0.00010208,2]
[334662063,1723421432290,-150.99,0.00010208,2]
[334662064,1723421432304,-1220.31,0.00010208,2]
[334662065,1723421432317,-150.99,0.00010208,2]
[334662066,1723421432326,-499.99,0.00010211,2]
[334662067,1723421432335,-739.63,0.00010211,2]
[334662068,1723421432345,-801.37,0.00010213,2]
[334662069,1723421432355,-739.63,0.00010214,2]
[334662070,1723421432365,-739.63,0.00010217,2]
[334662071,1723421432374,-739.63,0.00010219,2]
[334662072,1723421432384,-739.63,0.00010222,2]
[334662074,1723421432394,-739.63,0.00010225,2]
[334662075,1723421432403,-298.84,0.00010226,2]
[334662076,1723421432413,-405.47248608,0.00010227,2]
[334662077,1723421432440,-334.15751392,0.00010227,2]
[334662078,1723421432450,-739.63,0.0001023,2]
[334662079,1723421432460,-739.63,0.00010233,2]
[334662080,1723421432469,-739.63,0.00010235,2]
[334662081,1723421432480,-59.27689835,0.00010238,2]
[334662082,1723421432500,-680.35310165,0.00010238,2]
[334662083,1723421432510,-10.47144215,0.00010241,2]
[334662084,1723421432531,-729.15855785,0.00010241,2]
[334662085,1723421432541,-150.0,0.00010241,2]
[334662086,1723421432552,-739.63,0.00010243,2]
[334662087,1723421432561,-739.63,0.00010246,2]
[334662088,1723421432571,-588.76,0.00010439,2]
[334662089,1723421432581,-497.44,0.00010467,2]
[334662090,1723421432591,-628.19,0.00010538,2]
[334662091,1723421432601,-5928.4406,0.000106,2]
[334662092,1723421432610,-733.4882,0.000106,2]
[334662093,1723421432620,-2261.0675,0.000106,2]
[334662094,1723421432630,-259.8678,0.000106,2]
[334662095,1723421432639,-420.97,0.0001063,2]
[334662096,1723421432649,-835.26,0.0001063,2]
[334662097,1723421432658,-420.97,0.0001063,2]
[334662098,1723421432668,-835.26,0.0001063,2]
[334662099,1723421432678,-420.97,0.0001063,2]
[334662100,1723421432687,-30.22461763,0.0001063,2]
[334662104,1723421438298,-390.74538237,0.0001063,2]
[334662105,1723421438309,-418.02,0.0001063,2]
[334662106,1723421438319,-196.76561735,0.0001063,2]
[334662107,1723421438352,-2363.62438265,0.0001063,2]
[334662108,1723421438361,-2755.66777725,0.000107,2]
[334662109,1723421438372,-642.12023881,0.000107,2]
[334662110,1723421438383,-33466.52773018,0.000107,2]
[334662111,1723421438461,-63650.15497159,0.000107,2]
[334662112,1723421438472,-1109.20886868,0.000107,2]
[334662113,1723421438515,-471.26757877,0.000107,2]
[334662114,1723421438567,-287.34726879,0.000107,2]
[334662117,1723421440356,-3017.256,0.000107,2]
[334662118,1723421440367,-2880.424834,0.000107,2]
[334662119,1723421440411,-2942.05,0.000107,2]
[334662120,1723421440422,-1641.30252,0.000107,2]
[334662121,1723421440466,-362.572002,0.000107,2]
[334662122,1723421440522,-859.86683842,0.000107,2]
[334662123,1723421440535,-35902.69645705,0.000107,2]
[334662124,1723421440577,-29574.57782437,0.000107,2]
[334662149,1723421443196,-13309.81674509,0.000107,2]
[334662153,1723421443246,-340.68338463,0.000107,2]
[334662155,1723421443300,-947.40643778,0.000107,2]
[334662156,1723421443944,-1656.315,0.000107,2]
[334662161,1723421446283,-896.1847932,0.000107,2]
[334662162,1723421446389,-5114.97780404,0.000107,2]
[334662163,1723421446497,-276.899955,0.000107,2]
[334662164,1723421446551,-2006.58596359,0.000107,2]
[334662165,1723421446567,-1301.33763081,0.000107,2]
[334662167,1723421550720,150.0,0.0002636,120]
[334662168,1723421590130,567.04,8.219e-05,2]
[334662171,1723421790772,150.0,0.00025875,120]
[334662174,1723422150961,538.68,8.219e-05,2]
[334662177,1723422279259,567.20217339,8.219e-05,2]
[334662212,1723422507687,200.0,8.178e-05,2]
[334662223,1723422630731,150.0,0.00025636,120]
[334662227,1723422632294,-200.0,9.884e-05,2]
[334662228,1723422632304,-250.0,9.908e-05,2]
[334662229,1723422632315,-163.78651217,9.913e-05,2]
[334662230,1723422632325,-1000.0,9.914e-05,2]
[334662231,1723422632334,-1199.71559484,9.939e-05,2]
[334662232,1723422632346,-307.5,9.939e-05,2]
[334662233,1723422632357,-451.63886766,9.939e-05,2]
[334662234,1723422632381,-615.77052,9.939e-05,2]
[334662235,1723422632393,-496.77,9.939e-05,2]
[334662236,1723422632405,-777.495996,9.939e-05,2]
[334662237,1723422632421,-1259.1690215,9.939e-05,2]
[334662238,1723422632431,-239.07,9.975e-05,2]
[334662239,1723422632440,-81.57058205,9.975e-05,2]
[334662240,1723422632452,-91.58715966,9.975e-05,2]
[334662241,1723422632461,-300.0,9.999e-05,2]
[334662242,1723422632470,-550.0,0.0001,2]
[334662243,1723422632480,-1115.40073156,0.0001,2]
[334662244,1723422632489,-155.44,0.00010022,2]
[334662245,1723422632499,-2526.479115,0.00010426,2]
[334662246,1723422632508,-538.68,0.00010479,2]
[334662247,1723422632518,-500.0,0.000105,2]
[334662248,1723422632532,-726.912,0.000105,2]
[334662249,1723422632541,-1143.5919,0.000105,2]
[334662250,1723422632550,-150.0,0.000105,2]
[334662251,1723422632559,-835.26,0.000105,2]
[334662252,1723422632568,-136.96067118,0.0001059,2]
[334662253,1723422632579,-1528.35103245,0.0001059,2]
[334662254,1723422632590,-1334.68829637,0.0001059,2]
[334662255,1723422632599,-150.0,0.00010599,2]
[334662256,1723422632608,-12676.11710061,0.000106,2]
[334662257,1723422632619,-5727.1428672,0.000106,2]
[334662258,1723422632629,-4087.53372105,0.000106,2]
[334662259,1723422632648,-2470.24297497,0.000106,2]
[334662260,1723422632659,-287.37338502,0.000106,2]
[334662261,1723422632670,-4082.1901667,0.000106,2]
[334662262,1723422632681,-5089.15586786,0.000106,2]
[334662263,1723422632692,-413.47322908,0.000106,2]
[334662264,1723422632703,-492.97927423,0.000106,2]
[334662265,1723422632714,-521.44331218,0.000106,2]
[334662272,1723422638365,-6266.03065695,0.000106,2]
[334662273,1723422638376,-6435.43409366,0.000106,2]
[334662274,1723422638388,-19137.89899619,0.000106,2]
[334662275,1723422638399,-35849.47465954,0.000106,2]
[334662276,1723422638424,-763.05843611,0.000106,2]
[334662277,1723422638435,-768.41101917,0.000106,2]
[334662278,1723422638447,-442.25,0.000106,2]
[334662279,1723422638459,-1248.82727493,0.000106,2]
[334662280,1723422638484,-4852.6012,0.000106,2]
[334662281,1723422638495,-10535.96684458,0.000106,2]
[334662282,1723422638506,-1167.56978197,0.000106,2]
[334662283,1723422638600,-5213.2416444,0.000106,2]
[334662284,1723422638611,-10057.58,0.000106,2]
[334662285,1723422638622,-515.28705452,0.000106,2]
[334662286,1723422638633,-1134.70787623,0.000106,2]
[334662287,1723422638667,-3861.57904239,0.000106,2]
[334662288,1723422638678,-1041.06219095,0.000106,2]
[334662289,1723422638690,-307.07755376,0.000106,2]
[334662297,1723422640340,-680.67,0.000106,2]
[334662298,1723422640351,-322.85018007,0.000106,2]
[334662299,1723422640363,-503.4787228,0.000106,2]
[334662300,1723422640374,-834.612608,0.000106,2]
[334662301,1723422640456,-24104.6103854,0.000106,2]
[334662302,1723422640467,-540.18000005,0.000106,2]
[334662303,1723422640520,-3593.08737091,0.000106,2]
[334662304,1723422640579,-3891.36684221,0.000106,2]
[334662305,1723422640592,-307.46014093,0.000106,2]
[334662306,1723422640637,-347.78074878,0.000106,2]
[334662307,1723422640649,-1079.800005,0.000106,2]
[334662308,1723422640661,-13747.9286716,0.000106,2]
[334662309,1723422640671,-157.61292635,0.00010899,2]
[334662310,1723422640681,-168.91896576,0.000109,2]
[334662311,1723422640692,-553.9471,0.000109,2]
[334662312,1723422640702,-2420.6388232,0.000109,2]
[334662314,1723422643335,-711.51228327,0.000109,2]
[334662315,1723422643346,-276.224985,0.000109,2]
[334662319,1723422643392,-2153.13250853,0.000109,2]
[334662321,1723422643402,-1000.0,0.000109,2]
[334662323,1723422643411,-326.81458476,0.000109,2]
[334662325,1723422643420,-204.3760443,0.000109,2]
[334662327,1723422643430,-5539.535,0.000109,2]
[334662329,1723422643439,-490.45,0.00010959,5]
[334662331,1723422643448,-250.0,0.00010959,2]
[334662333,1723422643458,-693.86,0.00010959,2]
[334662334,1723422643467,-200.05767972,0.00010973,2]
[334662335,1723422643477,-337.69179294,0.00010999,2]
[334662336,1723422643486,-2257.555043,0.00010999,2]
[334662337,1723422643496,-501.0,0.00011,2]
[334662338,1723422643504,-7950.6157497,0.00011,2]
[334662339,1723422643513,-11633.91159709,0.00011,2]
[334662340,1723422643524,-55926.09250873,0.00011,2]
[334662341,1723422643538,-630.18302999,0.00011,2]
[334662342,1723422643548,-2694.80145435,0.00011,2]
[334662343,1723422643560,-239868.66467893,0.00011,2]
[334662344,1723422643581,-297.59077079,0.00011,2]
[334662345,1723422643623,-883.32723249,0.00011,2]
[334662354,1723422644364,-452.15233686,0.00011,2]
[334662358,1723422646433,-1675.2,0.00011,2]
[334662359,1723422646445,-3337.89376783,0.00011,2]
[334662360,1723422646496,-321.56691331,0.00011,2]
[334662361,1723422646606,-3006.8028,0.00011,2]
[334662362,1723422646618,-15759.56185713,0.00011,2]
[334662363,1723422646627,-372.08019945,0.00011,2]
[334662364,1723422646636,-6244.82011681,0.00011,2]
[334662365,1723422646666,-1981.35353,0.00011,2]
[334662366,1723422646677,-311.41582252,0.00011,2]
[334662367,1723422650499,503.15,8.899e-05,2]
[334662370,1723422731393,-180.44,0.00010495,2]
[334662371,1723422731422,-434.3118,0.000105,2]
[334662372,1723422731449,-661.0,0.00010599,2]
[334662373,1723422731479,-1050.60325905,0.000106,2]
[334662374,1723422731505,-170.49309143,0.000106,2]
[334662375,1723422731530,-181.82632038,0.000106,2]
[334662376,1723422731557,-299.96327378,0.000106,2]
[334662377,1723422731583,-413.11934723,0.000106,2]
[334662378,1723422731609,-449.54781075,0.000106,2]
[334662379,1723422731636,-40571.69509738,0.000106,2]
[334662382,1723422810741,150.0,0.00026512,120]
[334662387,1723422870713,150.0,0.00026838,120]
[334662400,1723423015662,180.0,0.00025,60]
[334662409,1723423110766,150.0,0.00026214,120]
[334662411,1723423131022,296.52257337,8.219e-05,2]
[334662412,1723423131050,217.18742663,8.219e-05,2]
[334662417,1723423410890,150.0,0.00023897,120]
[334662418,1723423470775,150.0,0.00024391,120]
[334662420,1723423530882,150.0,0.0002552,120]
[334662422,1723423590759,150.0,0.00026337,120]
[334662472,1723423720018,250.0,9.605e-05,2]
[334662474,1723423796106,488.02,8.219e-05,2]
[334662481,1723423831768,-156.31,9.867e-05,2]
[334662482,1723423831778,-156.31,9.875e-05,2]
[334662483,1723423831787,-156.31,9.883e-05,2]
[334662484,1723423831796,-156.31,9.891e-05,2]
[334662485,1723423831806,-156.31,9.9e-05,2]
[334662486,1723423831816,-800.0,9.905e-05,2]
[334662487,1723423831825,-156.31,9.908e-05,2]
[334662488,1723423831834,-156.31,9.916e-05,2]
[334662489,1723423831845,-11163.58,9.94e-05,2]
[334662490,1723423831855,-653.50900669,0.0001,2]
[334662491,1723423831864,-878.59,0.0001,2]
[334662492,1723423831873,-159.45,0.00010003,2]
[334662493,1723423831883,-438.28,0.00010057,2]
[334662494,1723423831892,-1648.98096509,0.00010075,10]
[334662495,1723423831901,-200.0,0.00010123,2]
[334662496,1723423831910,-170.99,0.00010155,2]
[334662497,1723423831920,-150.0,0.00010247,2]
[334662498,1723423831930,-188.45,0.00010262,2]
[334662499,1723423831939,-488.02,0.00010457,2]
[334662500,1723423831948,-1008.03,0.00010481,2]
[334662501,1723423831958,-499.99,0.00010481,2]
[334662502,1723423831968,-150.0,0.00010499,2]
[334662503,1723423831978,-40594.9839,0.000105,2]
[334662504,1723423831991,-1000.0,0.000105,2]
[334662505,1723423832001,-603.0,0.000106,2]
[334662506,1723423832010,-4686.21,0.00010631,2]
[334662507,1723423832019,-3197.21,0.00010631,2]
[334662508,1723423832029,-150.0,0.000107,2]
[334662509,1723423832038,-470.03075,0.0001089,2]
[334662510,1723423832049,-168.91896574,0.000109,2]
[334662511,1723423832058,-7500.0,0.000109,2]
[334662512,1723423832067,-401.26423212,0.000109,2]
[334662513,1723423832077,-1946.0,0.000109,2]
[334662514,1723423832087,-250.0,0.00010959,2]
[334662515,1723423832096,-337.69179295,0.00010999,2]
[334662516,1723423832106,-544.0,0.00011,2]
[334662517,1723423832116,-178122.09922478,0.00011,2]
[334662518,1723423832125,-28619.06522603,0.00011,2]
[334662519,1723423832142,-929.99995,0.00011,2]
[334662520,1723423832153,-1679.06194262,0.00011,2]
[334662521,1723423832164,-438292.89349608,0.00011,2]
[334662522,1723423832175,-2722.12504729,0.00011,2]
[334662525,1723423832222,-300.0,0.00011,2]
[334662526,1723423832235,-9319.55914838,0.00011,2]
[334662527,1723423832246,-1203.63841064,0.00011,2]
[334662529,1723423832257,-2514.72665498,0.00011,2]
[334662531,1723423832267,-22916.49869489,0.00011,2]
[334662533,1723423832279,-1215.07590594,0.00011,2]
[334662535,1723423832290,-1306.0,0.00011,2]
[334662538,1723423832301,-3332.62267,0.00011,2]
[334662539,1723423832321,-334.17,0.00011,2]
[334662540,1723423832331,-557.07764247,0.00011,2]
[334662541,1723423832343,-2839.55549383,0.00011,2]
[334662545,1723423837620,-295667.8381384,0.00011,2]
[334662546,1723423837632,-6145.33858782,0.00011,2]
[334662547,1723423837646,-2352.243256,0.00011,2]
[334662548,1723423837661,-1741.0,0.00011,2]
[334662549,1723423837684,-1267.26543819,0.00011,2]
[334662550,1723423837744,-5436.27545617,0.00011,2]
[334662551,1723423837803,-2756.36521699,0.00011,2]
[334662552,1723423837815,-712.43225591,0.00011,2]
[334662553,1723423837920,-1605.98,0.00011,2]
[334662554,1723423837979,-10580.44874664,0.00011,2]
[334662555,1723423838041,-1495.67112458,0.00011,2]
[334662594,1723423839640,-1608.91586877,0.00011,2]
[334662595,1723423839654,-462.7030002,0.00011,2]
[334662596,1723423839757,-612.14616604,0.00011,2]
[334662597,1723423839768,-2917.5,0.00011,2]
[334662598,1723423839779,-385.04099432,0.00011,2]
[334662599,1723423839874,-9364.78510067,0.00011,2]
[334662620,1723423842573,-1217.50675063,0.00011,2]
[334662680,1723423843485,-609.59,0.00011,2]
[334662682,1723423843497,-85708.1289423,0.00011,2]
[334662684,1723423843508,-239868.66467893,0.00011,2]
[334662687,1723423843528,-1433.76304378,0.00011,2]
[334662690,1723423843546,-1365148.44170421,0.00011,2]
[334662855,1723423845674,-628.775,0.00011,2]
[334662856,1723423845687,-500.0,0.00011,2]
[334662860,1723423845738,-3035.02430858,0.00011,2]
[334662862,1723423845749,-1458.96624,0.00011,2]
[334662864,1723423845862,-430.79410387,0.00011,2]
[334662865,1723423845885,-695.19249147,0.00011,2]
[334662866,1723423845900,-1463.937475,0.00011,2]
[334662867,1723423845912,-3979.28148486,0.00011,2]
[334663068,1723424130730,150.0,0.00024064,120]
[334663069,1723424263245,2698.0,0.00025,60]
[334663070,1723424268312,2679.0,0.00025,61]
[334663072,1723424425078,475.9,8.43e-05,2]
[334663087,1723424890917,468.46,8.219e-05,2]
[334663094,1723424971867,150.0,0.00026828,120]
[334663095,1723425030925,150.0,0.00026949,120]
[334663116,1723425032115,-1169.7703,9.987e-05,2]
[334663120,1723425037802,-51.572,9.987e-05,2]
[334663121,1723425037812,-550.0,0.0001,2]
[334663122,1723425037822,-1214.92552,0.00010087,2]
[334663123,1723425037867,-678.74827189,0.00010087,2]
[334663124,1723425037878,-999.05767994,0.00010087,2]
[334663125,1723425037889,-298.93586434,0.00010087,2]
[334663126,1723425037946,-427.20419193,0.00010087,2]
[334663127,1723425037958,-3843.1784719,0.00010087,2]
[334663128,1723425037967,-250.0,0.00010129,2]
[334663129,1723425037978,-360.0,0.00010154,2]
[334663130,1723425037987,-158.96766456,0.00010218,2]
[334663131,1723425037996,-796.2476141,0.00010218,2]
[334663132,1723425038006,-531.10427254,0.00010218,2]
[334663133,1723425038015,-260.84,0.00010257,2]
[334663134,1723425038025,-188.45,0.00010259,2]
[334663135,1723425038034,-640.0,0.00010348,2]
[334663136,1723425038043,-468.46,0.00010483,2]
[334663137,1723425038053,-1000.0,0.000107,2]
[334663138,1723425038063,-2387.00762861,0.000108,2]
[334663139,1723425038126,-635.71119379,0.000108,2]
[334663140,1723425038136,-25.25451675,0.00010899,2]
[334663141,1723425038147,-426.17548325,0.00010899,2]
[334663142,1723425038160,-150.0,0.00010899,2]
[334663143,1723425038169,-3303.19835105,0.000109,2]
[334663144,1723425038181,-617.53442811,0.000109,2]
[334663179,1723425039809,-626.41586476,0.000109,2]
[334663181,1723425039821,-1594.4435325,0.000109,2]
[334663182,1723425039832,-2906.66165192,0.000109,2]
[334663183,1723425039843,-9682.16327166,0.000109,2]
[334663184,1723425039852,-168.91896574,0.000109,2]
[334663185,1723425039861,-7500.0,0.000109,2]
[334663186,1723425039870,-205.19502061,0.000109,2]
[334663187,1723425039879,-178.43906996,0.000109,2]
[334663188,1723425039889,-542.45,0.00010959,2]
[334663189,1723425039898,-250.0,0.00010959,2]
[334663190,1723425039908,-309.5508102,0.00010999,2]
[334663191,1723425039920,-39799.28286182,0.00011,2]
[334663192,1723425039935,-270.88221799,0.00011,2]
[334663193,1723425039946,-1531.85830089,0.00011,2]
[334663194,1723425039958,-1180.22303273,0.00011,2]
[334663195,1723425039969,-586.245,0.00011,2]
[334663196,1723425040074,-40598.05593484,0.00011,2]
[334663197,1723425040086,-7861.32640948,0.00011,2]
[334663198,1723425040141,-936.3136814,0.00011,2]
[334663207,1723425042748,-841.76071626,0.00011,2]
[334663208,1723425042760,-521.4381375,0.00011,2]
[334663217,1723425043495,-460.35272284,0.00011,2]
[334663218,1723425043507,-303.845,0.00011,2]
[334663219,1723425043525,-27115.77982855,0.00011,2]
[334663220,1723425043535,-82980.03411293,0.00011,2]
[334663221,1723425043544,-129772.85073745,0.00011,2]
[334663222,1723425043555,-1919.52883686,0.00011,2]
[334663223,1723425043566,-940.096497,0.00011,2]
[334663228,1723425045900,-14299.999998,0.00011,2]
[334663229,1723425046121,-5886.8478948,0.00011,2]
[334663230,1723425046138,-20195.43,0.00011,2]
[334663234,1723425150761,150.0,0.00026052,120]
[334663235,1723425271299,150.0,0.00025172,120]
[334663236,1723425330739,150.0,0.00026372,120]
[334663239,1723425435820,468.91,8.314e-05,2]
[334663240,1723425510751,150.0,0.00025218,120]
[334663243,1723425630747,150.0,0.00025845,120]
[334663249,1723425892900,445.46,8.219e-05,2]
[334663287,1723426232725,-155.2359154,9.962e-05,2]
[334663288,1723426232735,-155.10507643,9.962e-05,2]
[334663289,1723426232746,-550.0,0.0001,2]
[334663290,1723426232757,-300.0,0.00010016,2]
[334663291,1723426232766,-23870.0,0.00010017,2]
[334663292,1723426232775,-250.0,0.00010061,2]
[334663293,1723426232784,-288.0,0.00010072,2]
[334663294,1723426232794,-208.68,0.00010103,2]
[334663295,1723426232804,-712.0,0.00010223,2]
[334663296,1723426232813,-153.63,0.00010455,2]
[334663297,1723426232824,-233.18,0.00010478,2]
[334663298,1723426232834,-499.99,0.00010478,2]
[334663299,1723426232843,-1718.77,0.00010479,2]
[334663300,1723426232852,-840.55,0.00010479,2]
[334663301,1723426232862,-445.46,0.00010479,2]
[334663302,1723426232871,-1092.64378658,0.0001078,2]
[334663303,1723426232880,-1109.48029122,0.0001078,2]
[334663304,1723426232890,-673.36,0.000108,2]
[334663305,1723426232899,-841.31027713,0.000108,2]
[334663306,1723426232908,-184.67551854,0.00010899,2]
[334663307,1723426232918,-150.0,0.00010899,2]
[334663308,1723426232932,-948.209,0.000109,2]
[334663309,1723426232942,-8039.5515,0.000109,2]
[334663310,1723426232951,-113964.9462,0.000109,2]
[334663311,1723426232960,-71729.12055434,0.000109,2]
[334663312,1723426232972,-295.44814184,0.000109,2]
[334663313,1723426232984,-7805.33,0.000109,2]
[334663314,1723426232996,-634.62490382,0.000109,2]
[334663315,1723426233006,-768.5522,0.000109,2]
[334663316,1723426233015,-417.222,0.000109,2]
[334663317,1723426233025,-1717.24603775,0.000109,2]
[334663318,1723426233036,-1192.8949193,0.000109,2]
[334663319,1723426233048,-4589.85904295,0.000109,2]
[334663320,1723426233057,-1093.0,0.000109,2]
[334663321,1723426233067,-261.83,0.00010959,2]
[334663322,1723426233077,-250.0,0.00010959,2]
[334663323,1723426233086,-860.8912749,0.0001098,2]
[334663324,1723426233172,-2967.87,0.0001098,2]
[334663325,1723426233188,-349.70936002,0.0001098,2]
[334663326,1723426233199,-2851.15522932,0.0001098,2]
[334663327,1723426233209,-5652.89295038,0.00010997,2]
[334663328,1723426234492,62205.8722512,8.219e-05,2]
[334663330,1723426238223,-155.0830415,9.962e-05,2]
[334663332,1723426238233,-155.12483742,9.962e-05,2]
[334663334,1723426238242,-4048.82212108,0.00010997,2]
[334663336,1723426238411,-50114.6543819,0.00010997,2]
[334663337,1723426238421,-193.02438834,0.00010997,2]
[334663338,1723426238433,-283.75490935,0.00010999,2]
[334663339,1723426238442,-54238.28002741,0.00011,2]
[334663340,1723426238453,-277.955,0.00011,2]
[334663341,1723426238465,-2385.02488632,0.00011,2]
[334663342,1723426238477,-326.45,0.00011,2]
[334663343,1723426238492,-1664.7,0.00011,2]
[334663344,1723426238503,-542.99403541,0.00011,2]
[334663345,1723426238595,-300.001004,0.000109,2]
[334663346,1723426238868,-82.78791933,0.000109,2]
[334663347,1723426238878,-417.21208067,0.00011,2]
[334663362,1723426240363,-376.955934,0.00011,2]
[334663363,1723426240375,-85823.74806017,0.00011,2]
[334663364,1723426240384,-25918.75629801,0.00011,2]
[334663365,1723426240395,-2926.4020911,0.00011,2]
[334663366,1723426240406,-6102.1638032,0.00011,2]
[334663367,1723426240417,-11721.4,0.00011,2]
[334663368,1723426240429,-7701.58319048,0.00011,2]
[334663369,1723426240440,-644.08472678,0.00011,2]
[334663370,1723426240453,-1729.84999999,0.00011,2]
[334663371,1723426240464,-80413.53315472,0.00011,2]
[334663372,1723426240475,-1635.45042447,0.00011,2]
[334663373,1723426240564,-816.45950593,0.00011,2]
[334663374,1723426240575,-1124.02077438,0.00011,2]
[334663383,1723426243155,-155.09118934,9.962e-05,2]
[334663385,1723426243165,-5865.41861068,0.00011,2]
[334663387,1723426243175,-584.30000011,0.00011,2]
[334663389,1723426243189,-3601.23047188,0.00011,2]
[334663390,1723426243201,-931.13278959,0.00011,2]
[334663391,1723426243333,-286.93626806,0.00011,2]
[334663392,1723426243346,-212786.2582906,0.00011,2]
[334663393,1723426243358,-2978.44655774,0.00011,2]
[334663394,1723426243369,-1570.55517767,0.00011,2]
[334663395,1723426243380,-394.44315714,0.00011,2]
[334663396,1723426243391,-1255.06367634,0.00011,2]
[334663397,1723426243525,-378315.19698645,0.00011,2]
[334663398,1723426243536,-1599.08934919,0.00011,2]
[334663399,1723426243547,-873.04153788,0.00011,2]
[334663400,1723426243559,-443.07349567,0.00011,2]
[334663401,1723426243570,-831.48450349,0.00011,2]
[334663402,1723426243581,-715.36994382,0.00011,2]
[334663403,1723426243591,-427.18428536,0.00011,2]
[334663404,1723426243602,-537.88,0.00011,2]
[334663405,1723426243613,-768.44720034,0.00011,2]
[334663406,1723426243624,-748.63230573,0.00011,2]
[334663409,1723426244149,-653.44587086,0.00011,2]
[334663424,1723426246299,-155.14502719,9.962e-05,2]
[334663425,1723426246308,-284.6827743,0.00010999,2]
[334663426,1723426246317,-11313.9341469,0.00011,2]
[334663427,1723426246328,-4357.65844188,0.00011,2]
[334663428,1723426246340,-31524.15144403,0.00011,2]
[334663429,1723426246351,-28760.000003,0.00011,2]
[334663430,1723426246362,-7533.79919372,0.00011,2]
[334663431,1723426246373,-1862.13435004,0.00011,2]
[334663432,1723426246384,-1295.87497203,0.00011,2]
[334663433,1723426246395,-5587.6219316,0.00011,2]
[334663434,1723426246406,-1564.33617818,0.00011,2]
[334663435,1723426246468,-29877.89749656,0.00011,2]
[334663436,1723426246480,-1740.74654837,0.00011,2]
[334663437,1723426246491,-8388.26784103,0.00011,2]
[334663438,1723426246502,-2353.21410219,0.00011,2]
[334663439,1723426246513,-1000.54103258,0.00011,2]
[334663440,1723426246524,-2439.94300744,0.00011,2]